fUSD/lending_fUSD_20260123
["ID","MTS","AMOUNT","RATE_DAILY","PERIOD"]
[403142181,1769195439102,-500.0,0.00015871,2]
[403142182,1769195439111,-500.0,0.0001589,2]
[403142183,1769195439120,-150.0,0.0001589,2]
[403142184,1769195439130,-250.0,0.0001589,2]
[403142185,1769195439139,-250.0,0.0001589,2]
[403142186,1769195439148,-500.0,0.0001589,2]
[403142187,1769195439157,-500.0,0.0001589,2]
[403142188,1769195439167,-500.0,0.0001589,2]
[403142189,1769195439175,-500.0,0.0001589,2]
[403142190,1769195439186,-150.0,0.0001589,2]
[403142191,1769195439195,-150.0,0.0001589,2]
[403142192,1769195439205,-150.0,0.0001589,2]
[403142193,1769195439214,-1332.14286401,0.00015901,2]
[403142194,1769195439223,-2350.05791605,0.00015901,2]
[403142195,1769195439232,-3515.54609468,0.00015901,2]
[403142196,1769195439242,-4756.653,0.00015901,2]
[403142197,1769195439251,-500.0,0.00015922,2]
[403142198,1769195439260,-500.0,0.00015922,2]
[403142199,1769195439268,-500.0,0.00015922,2]
[403142200,1769195439278,-375.73815935,0.00015926,2]
[403142201,1769195439287,-500.0,0.00015926,2]
[403142202,1769195439297,-500.0,0.00015945,2]
[403142203,1769195439307,-500.0,0.00015945,2]
[403142204,1769195439316,-500.0,0.00015945,2]
[403142205,1769195439325,-500.0,0.00015945,2]
[403142206,1769195439334,-500.0,0.00015945,2]
[403142207,1769195439343,-150.0,0.00015945,2]
[403142208,1769195439353,-500.0,0.00015977,2]
[403142209,1769195439362,-500.0,0.00015977,2]
[403142210,1769195439371,-500.0,0.00015977,2]
[403142211,1769195439380,-256.3676208,0.0001598,2]
[403142212,1769195439389,-500.0,0.00016,2]
[403142213,1769195439398,-500.0,0.00016,2]
[403142214,1769195439407,-500.0,0.00016,2]
[403142215,1769195439416,-152.7794935,0.00016,2]
[403142216,1769195439425,-500.0,0.00016,2]
[403142217,1769195439434,-200.0,0.00016,2]
[403142218,1769195439443,-500.0,0.00016032,2]
[403142219,1769195439452,-500.0,0.00016032,2]
[403142220,1769195439461,-500.0,0.00016032,2]
[403142221,1769195439470,-350.0,0.00016054,2]
[403142222,1769195439478,-500.0,0.00016054,2]
[403142223,1769195439488,-500.0,0.00016054,2]
[403142224,1769195439496,-500.0,0.00016054,2]
[403142225,1769195439505,-500.0,0.00016086,2]
[403142226,1769195439514,-500.0,0.00016086,2]
[403142227,1769195439523,-500.0,0.00016109,2]
[403142228,1769195439531,-500.0,0.00016109,2]
[403142229,1769195439540,-200.0,0.00016133,2]
[403142230,1769195439549,-500.0,0.00016141,2]
[403142231,1769195439558,-1050.62312086,0.00016147,2]
[403142232,1769195439567,-500.0,0.00016164,2]
[403142233,1769195439576,-500.0,0.00016164,2]
[403142234,1769195439585,-150.0,0.00016164,2]
[403142235,1769195439594,-500.0,0.00016164,2]
[403142236,1769195439603,-500.0,0.00016164,2]
[403142237,1769195439613,-152.84284681,0.00016164,2]
[403142238,1769195439622,-500.0,0.00016164,2]
[403142239,1769195439631,-500.0,0.00016164,2]
[403142240,1769195439640,-150.65265465,0.00016164,2]
[403142241,1769195439650,-150.0,0.00016164,2]
[403142242,1769195439659,-500.0,0.00016164,2]
[403142243,1769195439668,-150.0,0.00016164,2]
[403142244,1769195439678,-150.0,0.00016164,2]
[403142245,1769195439688,-500.0,0.00016164,2]
[403142246,1769195439698,-500.0,0.00016164,2]
[403142247,1769195439707,-500.0,0.00016164,2]
[403142248,1769195439716,-150.0,0.00016164,2]
[403142249,1769195439726,-500.0,0.00016164,2]
[403142250,1769195439734,-150.0,0.00016164,2]
[403142251,1769195439743,-150.0,0.00016164,2]
[403142252,1769195439752,-500.0,0.00016164,2]
[403142253,1769195439762,-150.0,0.00016164,2]
[403142254,1769195439771,-151.07703537,0.00016164,2]
[403142255,1769195439780,-500.0,0.00016196,2]
[403142256,1769195439790,-441.93,0.00016205,2]
[403142257,1769195439799,-500.0,0.00016219,2]
[403142258,1769195439809,-500.0,0.00016219,2]
[403142259,1769195439818,-500.0,0.00016219,2]
[403142260,1769195439828,-500.0,0.00016219,2]
[403142261,1769195439837,-500.0,0.00016219,2]
[403142262,1769195439847,-500.0,0.00016219,2]
[403142263,1769195439856,-500.0,0.00016219,2]
[403142264,1769195439866,-235.3073639,0.00016219,2]
[403142265,1769195439875,-500.0,0.00016219,2]
[403142266,1769195439888,-500.0,0.00016219,2]
[403142267,1769195439898,-500.0,0.00016219,2]
[403142268,1769195439907,-227.55062227,0.00016219,2]
[403142269,1769195439916,-500.0,0.00016219,2]
[403142270,1769195439926,-150.0,0.00016219,2]
[403142271,1769195439935,-150.0,0.00016219,2]
[403142272,1769195439945,-500.0,0.00016219,2]
[403142273,1769195439956,-150.0,0.00016219,2]
[403142274,1769195439965,-500.0,0.00016251,2]
[403142275,1769195439974,-177.36277185,0.00016274,2]
[403142276,1769195439989,-500.0,0.00016274,2]
[403142277,1769195440003,-500.0,0.00016274,2]
[403142278,1769195440012,-500.0,0.00016274,2]
[403142279,1769195440022,-500.0,0.00016274,2]
[403142280,1769195440032,-500.0,0.00016274,2]
[403142281,1769195440042,-500.0,0.00016274,2]
[403142282,1769195440052,-500.0,0.00016274,2]
[403142283,1769195440061,-500.0,0.00016274,2]
[403142284,1769195440071,-153.53248348,0.00016274,2]
[403142285,1769195440081,-172.45367867,0.00016274,2]
[403142286,1769195440093,-150.0,0.00016274,2]
[403142287,1769195440103,-157.15309479,0.00016274,2]
[403142288,1769195440113,-500.0,0.00016274,2]
[403142289,1769195440123,-500.0,0.00016306,2]
[403142290,1769195440133,-500.0,0.00016328,2]
[403142291,1769195440143,-500.0,0.00016328,2]
[403142293,1769195440153,-500.0,0.00016328,2]
[403142294,1769195440163,-500.0,0.00016328,2]
[403142296,1769195440174,-500.0,0.00016328,2]
[403142297,1769195440183,-500.0,0.00016328,2]
[403142298,1769195440193,-500.0,0.00016328,2]
[403142299,1769195440203,-500.0,0.00016328,2]
[403142300,1769195440213,-164.45892503,0.00016328,2]
[403142301,1769195440223,-631.84582328,0.00016328,2]
[403142302,1769195440233,-500.0,0.0001636,2]
[403142303,1769195440243,-500.0,0.00016383,2]
[403142304,1769195440253,-500.0,0.00016383,2]
[403142305,1769195440262,-255.87876924,0.00016383,2]
[403142306,1769195440272,-340.0,0.00016383,2]
[403142307,1769195440283,-500.0,0.00016383,2]
[403142308,1769195440292,-233.97306392,0.00016383,2]
[403142309,1769195440302,-500.0,0.00016383,2]
[403142310,1769195440312,-500.0,0.00016383,2]
[403142311,1769195440322,-500.0,0.00016415,2]
[403142312,1769195440331,-500.0,0.00016438,2]
[403142313,1769195440341,-460.93814025,0.00016438,2]
[403142314,1769195440351,-500.0,0.00016438,2]
[403142315,1769195440361,-500.0,0.00016438,2]
[403142316,1769195440371,-500.0,0.00016438,2]
[403142317,1769195440381,-500.0,0.00016438,2]
[403142318,1769195440391,-500.0,0.00016438,2]
[403142319,1769195440400,-408.54670123,0.00016438,2]
[403142320,1769195440410,-156.50518902,0.00016438,2]
[403142321,1769195440420,-194.16516099,0.00016438,2]
[403142322,1769195440430,-500.0,0.00016438,2]
[403142323,1769195440441,-545.0,0.0001647,2]
[403142324,1769195440450,-500.0,0.00016493,2]
[403142325,1769195440461,-500.0,0.00016493,2]
[403142326,1769195440471,-500.0,0.00016493,2]
[403142327,1769195440480,-500.0,0.00016493,2]
[403142328,1769195440490,-500.0,0.00016493,2]
[403142329,1769195440501,-500.0,0.00016548,2]
[403142330,1769195440511,-500.0,0.00016548,2]
[403142331,1769195440520,-300.0,0.00016548,2]
[403142332,1769195440530,-500.0,0.00016548,2]
[403142333,1769195440540,-1050.62312086,0.00016585,2]
[403142334,1769195440550,-500.0,0.00016602,2]
[403142335,1769195440560,-500.0,0.00016657,2]
[403142336,1769195440570,-500.0,0.00016712,2]
[403142337,1769195440582,-166.66,0.00016757,2]
[403142338,1769195440592,-229.21715423,0.00016767,2]
[403142339,1769195440601,-600.0,0.000169,6]
[403142340,1769195440611,-1000.0,0.00016993,2]
[403142341,1769195440622,-1000.0,0.00016993,2]
[403142342,1769195440631,-1000.0,0.00016993,2]
[403142343,1769195440641,-1000.0,0.00016993,2]
[403142344,1769195440651,-1000.0,0.00016993,2]
[403142345,1769195440661,-876.427,0.00016993,2]
[403142346,1769195440671,-250.0,0.00017,2]
[403142347,1769195440681,-1050.62312086,0.00017023,2]
[403142348,1769195440691,-250.0,0.00017072,2]
[403142349,1769195440701,-250.0,0.00017072,2]
[403142350,1769195440710,-250.0,0.00017072,2]
[403142351,1769195440719,-250.0,0.00017072,2]
[403142352,1769195440729,-280.85509855,0.00017072,2]
[403142353,1769195440739,-500.0,0.00017072,2]
[403142354,1769195440748,-500.0,0.00017072,2]
[403142355,1769195440758,-500.0,0.00017072,2]
[403142356,1769195440767,-500.0,0.00017072,2]
[403142357,1769195440776,-500.0,0.00017072,2]
[403142358,1769195440786,-500.0,0.00017072,2]
[403142359,1769195440795,-500.0,0.00017072,2]
[403142360,1769195440806,-500.0,0.00017072,2]
[403142361,1769195440816,-500.0,0.00017072,2]
[403142362,1769195440826,-500.0,0.00017072,2]
[403142363,1769195440835,-2468.0,0.00017072,2]
[403142364,1769195440844,-500.0,0.00017072,2]
[403142365,1769195440854,-500.0,0.00017072,2]
[403142366,1769195440864,-500.0,0.00017072,2]
[403142367,1769195440874,-500.0,0.00017072,2]
[403142368,1769195440884,-500.0,0.00017072,2]
[403142369,1769195440894,-500.0,0.00017072,2]
[403142370,1769195440905,-500.0,0.00017072,2]
[403142371,1769195440914,-500.0,0.00017072,2]
[403142372,1769195440926,-500.0,0.00017072,2]
[403142373,1769195440935,-151.0,0.00017072,2]
[403142374,1769195440945,-500.0,0.00017072,2]
[403142375,1769195440955,-151.0,0.00017072,2]
[403142376,1769195440964,-500.0,0.00017072,2]
[403142377,1769195440974,-151.0,0.00017072,2]
[403142378,1769195440983,-500.0,0.00017072,2]
[403142379,1769195440993,-151.0,0.00017072,2]
[403142380,1769195441003,-151.0,0.00017072,2]
[403142381,1769195441013,-151.0,0.00017072,2]
[403142382,1769195441022,-151.0,0.00017072,2]
[403142383,1769195441031,-151.0,0.00017072,2]
[403142384,1769195441041,-151.0,0.00017072,2]
[403142385,1769195441050,-151.0,0.00017072,2]
[403142386,1769195441060,-151.0,0.00017072,2]
[403142387,1769195441071,-166.66,0.00017109,2]
[403142388,1769195441082,-150.0,0.00017226,2]
[403142389,1769195441092,-500.0,0.00017226,2]
[403142390,1769195441101,-150.0,0.00017226,2]
[403142391,1769195441111,-500.0,0.00017226,2]
[403142392,1769195441120,-150.0,0.00017281,2]
[403142393,1769195441129,-500.0,0.00017281,2]
[403142394,1769195441139,-150.0,0.00017281,2]
[403142395,1769195441148,-500.0,0.00017281,2]
[403142396,1769195441157,-255.80435828,0.00017336,2]
[403142397,1769195441167,-500.0,0.00017336,2]
[403142398,1769195441176,-154.75207679,0.00017336,2]
[403142399,1769195441186,-500.0,0.00017336,2]
[403142400,1769195441195,-836.0,0.0001736,2]
[403142401,1769195441205,-387.0,0.00017361,2]
[403142402,1769195441215,-250.0,0.00017377,2]
[403142403,1769195441225,-500.0,0.0001739,2]
[403142404,1769195441610,-500.0,0.0001739,2]
[403142405,1769195441620,-900.0,0.000174,6]
[403142406,1769195441630,-158.37327714,0.00017401,2]
[403142407,1769195441639,-1050.62312086,0.00017462,2]
[403142408,1769195441650,-166.66,0.00017462,2]
[403142409,1769195441659,-160.2,0.00017469,2]
[403142410,1769195441670,-1362.49107217,0.000175,2]
[403142411,1769195441679,-1200.0,0.000175,6]
[403142412,1769195441689,-168.0,0.0001754,2]
[403142413,1769195441699,-5888.0,0.00017566,2]
[403142414,1769195441708,-1500.0,0.000176,6]
[403142415,1769195441717,-208.03774045,0.0001764,2]
[403142416,1769195441727,-168.0,0.00017698,2]
[403142417,1769195441736,-300.0,0.000177,6]
[403142418,1769195441745,-168.0,0.00017736,2]
[403142419,1769195441754,-1000.0,0.0001777,2]
[403142420,1769195441764,-300.0,0.000178,6]
[403142421,1769195441774,-500.0,0.00017808,2]
[403142422,1769195441783,-150.0,0.00017808,2]
[403142423,1769195441793,-166.66,0.00017815,2]
[403142424,1769195441803,-6645.66140582,0.0001783,2]
[403142425,1769195441813,-168.0,0.00017841,2]
[403142426,1769195441822,-500.0,0.00017863,2]
[403142427,1769195441832,-25000.0,0.000179,3]
[403142428,1769195441842,-1050.62312086,0.000179,2]
[403142429,1769195441851,-300.0,0.000179,6]
[403142430,1769195441860,-195.92069658,0.000179,3]
[403142431,1769195441871,-291.47216045,0.000179,2]
[403142432,1769195441885,-2011.75444448,0.000179,2]
[403142433,1769195441894,-272.29181151,0.000179,2]
[403142434,1769195441904,-180.02075765,0.000179,2]
[403142435,1769195441914,-5018.0,0.00017914,2]
[403142436,1769195441925,-500.0,0.00017918,2]
[403142437,1769195441934,-168.0,0.00017956,2]
[403142438,1769195441943,-150.0,0.00017973,2]
[403142439,1769195441953,-150.0,0.00017973,2]
[403142440,1769195441963,-168.0,0.00017977,2]
[403142441,1769195441972,-151.0,0.00017997,2]
[403142442,1769195441981,-140477.76154,0.00017999,2]
[403142443,1769195441990,-1822.0102551,0.00017999,2]
[403142444,1769195441999,-3286.7530958,0.00017999,2]
[403142445,1769195442010,-3990.0086814,0.00017999,2]
[403142446,1769195442019,-3233.3349814,0.00017999,2]
[403142447,1769195442030,-300.0,0.00017999,2]
[403142448,1769195442039,-300.0,0.00017999,2]
[403142449,1769195442048,-629245.47982328,0.00018,2]
[403142450,1769195442319,-160.29505228,0.00013947,2]
[403142451,1769195442329,-196.38731255,0.00018,2]
[403142452,1769195442340,-644.38,0.00018,2]
[403142453,1769195442351,-1750.0,0.00018,2]
[403142454,1769195442373,-323.87299996,0.00018,2]
[403142455,1769195442384,-2095.592,0.00018,2]
[403142456,1769195442395,-7987767.86193919,0.00018,2]
[403142470,1769195443503,-447.27153168,0.00018,2]
[403142471,1769195443561,-853.16133455,0.00018,2]
[403142472,1769195443573,-735.24608787,0.00018,2]
[403142473,1769195443585,-4256.45529453,0.00018,2]
[403142474,1769195443597,-484.87198393,0.00018,2]
[403142475,1769195443616,-5559.86373034,0.00018,2]
[403142476,1769195443642,-17.50611581,0.00018,2]
[403142477,1769195443653,-619.94646908,0.00018,2]
[403142478,1769195443666,-13190.23077853,0.00018,2]
[403142480,1769195443824,-1012.68459326,0.00018,2]
[403142491,1769195446439,-160.29505219,0.00014386,2]
[403142492,1769195446450,-151.0,0.00015534,2]
[403142493,1769195446459,-597.12739006,0.00018,2]
[403142494,1769195446545,-3607.02658723,0.00018,2]
[403142495,1769195446651,-7107.96736794,0.00018,2]
[403142496,1769195446662,-24916.42488506,0.00018,2]
[403142506,1769195557849,300.0,0.000139,5]
[403142508,1769195599206,182.48,0.00013416,2]
[403142516,1769196074844,-386.13153588,0.00013855,2]
[403142517,1769196074867,-1204.26846412,0.00013855,2]
[403142519,1769196095185,-2143.819,0.00013676,2]
[403142520,1769196095215,-242.724,0.00013676,2]
[403142526,1769196454511,300.0,0.000139,5]
[403142527,1769196562149,-1200.0,0.00013854,2]
[403142528,1769196562175,-4125.835284,0.00013855,2]
[403142550,1769196631448,-347.51838231,0.00013845,2]
[403142551,1769196631458,-102.48161769,0.00013845,2]
[403142552,1769196631469,-295.39838231,0.00013845,2]
[403142553,1769196631478,-397.88,0.00013845,2]
[403142554,1769196631487,-397.88,0.00013845,2]
[403142555,1769196631497,-397.88,0.00013845,2]
[403142556,1769196631507,-397.88,0.00013845,2]
[403142557,1769196631516,-1212.4589309,0.00013855,2]
[403142558,1769196631526,-1345.65607522,0.00013855,2]
[403142559,1769196631535,-9391.2987388,0.00013855,2]
[403142560,1769196631547,-2126.40458596,0.00013855,2]
[403142561,1769196631590,-19.97138651,0.00013855,2]
[403142562,1769196631601,-2000.0,0.00013855,2]
[403142563,1769196631613,-1703.04317917,0.00013855,2]
[403142564,1769196631637,-5424.24874157,0.00013855,2]
[403142565,1769196631648,-2518.78506904,0.00013855,2]
[403142566,1769196631660,-609.653476,0.00013855,2]
[403142567,1769196631671,-2655.20136658,0.00013855,2]
[403142568,1769196631696,-42114.81447232,0.00013855,2]
[403142569,1769196631707,-931.21788998,0.00013855,2]
[403142570,1769196631718,-990.97939,0.00013855,2]
[403142571,1769196631730,-928.52587715,0.00013855,2]
[403142572,1769196631741,-5213.81017421,0.00013855,2]
[403142573,1769196631773,-948.3053255,0.00013855,2]
[403142574,1769196631787,-1244.11929397,0.00013855,2]
[403142575,1769196631798,-471.84604647,0.00013855,2]
[403142576,1769196631809,-1100.0,0.00013855,2]
[403142582,1769196637499,-264.81603677,0.00013854,2]
[403142583,1769196637509,-500.0,0.00013854,2]
[403142584,1769196637519,-500.0,0.00013854,2]
[403142585,1769196637528,-388.91786028,0.00013854,2]
[403142586,1769196637538,-9452.52414909,0.00013855,2]
[403142587,1769196637608,-428.59093229,0.00013855,2]
[403142588,1769196637620,-2359.54127137,0.00013855,2]
[403142589,1769196637632,-381.7342759,0.00013855,2]
[403142590,1769196637643,-4176.20288896,0.00013855,2]
[403142591,1769196637654,-4166.94113788,0.00013855,2]
[403142592,1769196637665,-15856.43259735,0.00013855,2]
[403142593,1769196637676,-6003.3091171,0.00013855,2]
[403142594,1769196637691,-876782.49861683,0.00013855,2]
[403142595,1769196637706,-1000.0,0.00013955,2]
[403142596,1769196637716,-347.51838224,0.00014296,2]
[403142597,1769196637726,-1345.6560752,0.00014304,2]
[403142598,1769196637735,-347.51838224,0.00014746,2]
[403142599,1769196637745,-1345.6560752,0.00014754,2]
[403142600,1769196637755,-347.51838224,0.00015197,2]
[403142601,1769196637764,-1345.6560752,0.00015203,2]
[403142602,1769196637776,-250.0,0.00015239,2]
[403142604,1769196637785,-195.0,0.00015239,2]
[403142606,1769196637794,-308.74155659,0.00015239,2]
[403142608,1769196637805,-347.51838224,0.00015647,2]
[403142610,1769196637814,-1345.6560752,0.00015653,2]
[403142612,1769196637823,-151.0,0.00015802,2]
[403142615,1769196637834,-151.0,0.00015823,2]
[403142617,1769196637843,-347.51838224,0.00016098,2]
[403142619,1769196637852,-1345.6560752,0.00016102,2]
[403142621,1769196637862,-1000.0,0.00016358,2]
[403142623,1769196637872,-150.0,0.00016363,2]
[403142625,1769196637882,-500.0,0.00016438,2]
[403142627,1769196637891,-500.0,0.00016438,2]
[403142629,1769196637904,-583.29534612,0.00016438,2]
[403142631,1769196637914,-287.84,0.00016479,2]
[403142633,1769196637924,-347.51838224,0.00016548,2]
[403142635,1769196637934,-1345.6560752,0.00016552,2]
[403142638,1769196637945,-200.0,0.00016727,2]
[403142640,1769196637957,-150.0,0.00016727,2]
[403142642,1769196637966,-150.0,0.00016727,2]
[403142644,1769196637975,-150.0,0.00016727,2]
[403142646,1769196637985,-500.0,0.00016727,2]
[403142648,1769196637996,-500.0,0.00016727,2]
[403142650,1769196638007,-500.0,0.00016727,2]
[403142652,1769196638017,-150.0,0.00016727,2]
[403142654,1769196638026,-583.29,0.00016744,2]
[403142656,1769196638036,-150.0,0.00016782,2]
[403142658,1769196638046,-150.0,0.00016782,2]
[403142660,1769196638056,-150.0,0.00016782,2]
[403142662,1769196638066,-500.0,0.00016782,2]
[403142664,1769196638075,-500.0,0.00016782,2]
[403142665,1769196638085,-500.0,0.00016782,2]
[403142668,1769196638100,-2000.0,0.00016782,2]
[403142669,1769196638110,-2000.0,0.00016782,2]
[403142672,1769196638120,-2000.0,0.00016782,2]
[403142673,1769196638132,-2000.0,0.00016782,2]
[403142675,1769196638143,-1000.0,0.0001679,2]
[403142677,1769196638153,-1000.0,0.0001679,2]
[403142679,1769196638163,-1000.0,0.0001679,2]
[403142682,1769196638174,-1000.0,0.0001679,2]
[403142684,1769196638185,-1000.0,0.0001679,2]
[403142686,1769196638195,-876.427,0.0001679,2]
[403142687,1769196638207,-1000.0,0.000168,2]
[403142689,1769196638218,-150.0,0.00016837,2]
[403142691,1769196638228,-150.0,0.00016837,2]
[403142694,1769196638239,-200.0,0.00016837,2]
[403142696,1769196638251,-500.0,0.00016837,2]
[403142698,1769196638261,-500.0,0.00016837,2]
[403142700,1769196638271,-500.0,0.00016837,2]
[403142702,1769196638280,-150.0,0.00016891,2]
[403142704,1769196638291,-274.27837996,0.00016891,2]
[403142706,1769196638305,-420.82470435,0.00016891,2]
[403142708,1769196638315,-527.36277185,0.00016891,2]
[403142710,1769196638328,-500.0,0.00016891,2]
[403142712,1769196638338,-150.0,0.00016946,2]
[403142714,1769196638350,-500.0,0.00016946,2]
[403142716,1769196638360,-347.51838224,0.00016999,2]
[403142719,1769196638370,-250.0,0.00017,2]
[403142721,1769196638379,-250.0,0.00017001,2]
[403142723,1769196638389,-500.0,0.00017001,2]
[403142725,1769196638399,-1345.6560752,0.00017001,2]
[403142727,1769196638408,-500.0,0.00017056,2]
[403142729,1769196638418,-287.84,0.00017097,2]
[403142731,1769196638428,-250.0,0.00017099,2]
[403142733,1769196638438,-250.0,0.00017099,2]
[403142735,1769196638449,-500.0,0.00017099,2]
[403142737,1769196638459,-500.0,0.00017099,2]
[403142739,1769196638469,-187.78006526,0.00017099,2]
[403142741,1769196638479,-500.0,0.00017099,2]
[403142743,1769196638490,-250.0,0.00017099,2]
[403142745,1769196638504,-250.0,0.00017099,2]
[403142747,1769196638514,-67.15771709,0.00017099,2]
[403142750,1769196638531,-432.84228291,0.00017099,2]
[403142752,1769196638541,-250.0,0.00017099,2]
[403142754,1769196638551,-250.0,0.00017099,2]
[403142756,1769196638562,-250.0,0.00017099,2]
[403142758,1769196638572,-500.0,0.00017099,2]
[403142760,1769196638582,-250.0,0.00017099,2]
[403142763,1769196638592,-500.0,0.00017099,2]
[403142765,1769196638602,-280.85509855,0.00017099,2]
[403142767,1769196638612,-482.95293048,0.00017099,2]
[403142769,1769196638624,-17.04706952,0.00017099,2]
[403142771,1769196638634,-151.0,0.00017099,2]
[403142773,1769196638644,-151.0,0.00017099,2]
[403142775,1769196638654,-500.0,0.00017099,2]
[403142777,1769196638664,-114.22597756,0.00017099,2]
[403142836,1769196639952,-36.77402244,0.00017099,2]
[403142837,1769196639962,-500.0,0.00017099,2]
[403142838,1769196639973,-151.0,0.00017099,2]
[403142839,1769196639983,-500.0,0.00017099,2]
[403142840,1769196639993,-151.0,0.00017099,2]
[403142841,1769196640003,-500.0,0.00017099,2]
[403142842,1769196640012,-151.0,0.00017099,2]
[403142843,1769196640022,-151.0,0.00017099,2]
[403142844,1769196640032,-151.0,0.00017099,2]
[403142845,1769196640042,-151.0,0.00017099,2]
[403142846,1769196640052,-151.0,0.00017099,2]
[403142848,1769196640061,-151.0,0.00017099,2]
[403142849,1769196640070,-151.0,0.00017099,2]
[403142850,1769196640079,-250.0,0.00017099,2]
[403142851,1769196640089,-322.6107,0.00017099,2]
[403142852,1769196640102,-2468.0,0.00017099,2]
[403142853,1769196640112,-500.0,0.00017099,2]
[403142854,1769196640121,-500.0,0.00017099,2]
[403142855,1769196640130,-500.0,0.00017099,2]
[403142856,1769196640140,-500.0,0.00017099,2]
[403142857,1769196640149,-500.0,0.00017099,2]
[403142858,1769196640159,-500.0,0.00017099,2]
[403142859,1769196640168,-500.0,0.00017099,2]
[403142862,1769196640517,-500.0,0.00017099,2]
[403142863,1769196640528,-500.0,0.00017099,2]
[403142864,1769196640538,-500.0,0.00017099,2]
[403142865,1769196640547,-500.0,0.00017099,2]
[403142866,1769196640556,-500.0,0.00017099,2]
[403142867,1769196640567,-500.0,0.00017099,2]
[403142868,1769196640577,-185.65996236,0.000171,2]
[403142869,1769196640586,-333.85374432,0.000171,2]
[403142870,1769196640595,-500.0,0.00017111,2]
[403142871,1769196640604,-150.0,0.00017112,2]
[403142872,1769196640613,-500.0,0.00017165,2]
[403142873,1769196640623,-700.0,0.000172,6]
[403142874,1769196640632,-500.0,0.0001722,2]
[403142875,1769196640641,-500.0,0.00017226,6]
[403142876,1769196640650,-150.0,0.00017226,6]
[403142877,1769196640659,-500.0,0.00017226,6]
[403142878,1769196640668,-152.84284681,0.00017226,6]
[403142879,1769196640677,-500.0,0.00017226,6]
[403142880,1769196640686,-500.0,0.00017226,6]
[403142881,1769196640696,-164.63,0.00017256,2]
[403142882,1769196640706,-500.0,0.00017275,2]
[403142883,1769196640715,-500.0,0.00017281,6]
[403142884,1769196640726,-500.0,0.00017281,6]
[403142885,1769196640735,-500.0,0.00017281,6]
[403142886,1769196640744,-500.0,0.00017281,6]
[403142887,1769196640757,-1100.0,0.000173,6]
[403142888,1769196640766,-500.0,0.0001733,2]
[403142889,1769196640776,-500.0,0.00017336,6]
[403142890,1769196640785,-500.0,0.00017336,6]
[403142891,1769196640794,-500.0,0.00017336,6]
[403142892,1769196640803,-500.0,0.00017336,6]
[403142893,1769196640813,-500.0,0.00017385,2]
[403142894,1769196640822,-500.0,0.0001739,6]
[403142895,1769196640831,-500.0,0.0001739,6]
[403142896,1769196640839,-500.0,0.0001739,6]
[403142897,1769196640849,-500.0,0.0001739,6]
[403142898,1769196640858,-1500.0,0.000174,6]
[403142899,1769196640866,-229.21715423,0.00017439,2]
[403142900,1769196640875,-500.0,0.00017445,6]
[403142901,1769196640885,-255.87876924,0.00017445,6]
[403142902,1769196640894,-490.0,0.00017445,6]
[403142903,1769196640904,-500.0,0.00017445,6]
[403142904,1769196640913,-158.3136204,0.00017447,2]
[403142905,1769196640924,-1345.6560752,0.00017451,2]
[403142906,1769196640934,-1553.0,0.00017452,2]